[Event "Titled Tuesday Blitz February 14 Early 2023"]
[White "Movahed, Sina"]
[Black "Durarbayli, Vasif"]
[WhiteFideId "42520835"]
[BlackFideId "13402935"]
[WhiteElo "2340"]
[BlackElo "2627"]
[Result "1-0"]
[Round "03"]
[TimeControl "180+2"]
[Date "2023.02.15"]
[WhiteClock "0:00:13"]
[BlackClock "0:00:01"]

1. e4 {[%clk 0:03:00]}  e5 {[%clk 0:02:55]} 2. Nf3 {[%clk 0:03:01]}  Nc6 {[%clk 0:02:56]} 3. Bb5 {[%clk 0:03:00]}  a6 {[%clk 0:02:56]} 4. Ba4 {[%clk 0:03:00]}  Nge7 {[%clk 0:02:57]} 5. O-O {[%clk 0:03:00]}  g6 {[%clk 0:02:57]} 6. c3 {[%clk 0:03:00]}  b5 {[%clk 0:02:57]} 7. Bc2 {[%clk 0:02:58]}  d6 {[%clk 0:02:48]} 8. h3 {[%clk 0:02:56]}  Bg7 {[%clk 0:02:48]} 9. d4 {[%clk 0:02:56]}  exd4 {[%clk 0:02:48]} 10. cxd4 {[%clk 0:02:57]}  O-O {[%clk 0:02:48]} 11. d5 {[%clk 0:02:57]}  Nb4 {[%clk 0:02:43]} 12. Bb3 {[%clk 0:02:56]}  a5 {[%clk 0:02:39]} 13. a3 {[%clk 0:02:56]}  Na6 {[%clk 0:02:39]} 14. Nc3 {[%clk 0:02:56]}  Rb8 {[%clk 0:02:29]} 15. Re1 {[%clk 0:02:54]}  Nc5 {[%clk 0:02:26]} 16. Bc2 {[%clk 0:02:53]}  b4 {[%clk 0:02:27]} 17. axb4 {[%clk 0:02:47]}  axb4 {[%clk 0:02:28]} 18. Na4 {[%clk 0:02:45]}  b3 {[%clk 0:02:26]} 19. Bd3 {[%clk 0:02:36]}  Ra8 {[%clk 0:01:51]} 20. Bb5 {[%clk 0:02:34]}  Ra5 {[%clk 0:01:51]} 21. Nxc5 {[%clk 0:01:56]}  Rxa1 {[%clk 0:01:49]} 22. Nxb3 {[%clk 0:01:57]}  Ra8 {[%clk 0:01:45]} 23. Qc2 {[%clk 0:01:57]}  Bd7 {[%clk 0:01:35]} 24. Bc4 {[%clk 0:01:56]}  Nc8 {[%clk 0:01:19]} 25. Bg5 {[%clk 0:01:53]}  Bf6 {[%clk 0:01:15]} 26. Bh6 {[%clk 0:01:52]}  Re8 {[%clk 0:01:15]} 27. Nbd4 {[%clk 0:01:34]}  Nb6 {[%clk 0:01:12]} 28. Bb3 {[%clk 0:01:34]}  Ra5 {[%clk 0:01:03]} 29. Bd2 {[%clk 0:01:31]}  Ra7 {[%clk 0:00:56]} 30. Rc1 {[%clk 0:01:26]}  Qe7 {[%clk 0:00:53]} 31. Re1 {[%clk 0:01:24]}  Rea8 {[%clk 0:00:52]} 32. Bc3 {[%clk 0:01:22]}  Ra1 {[%clk 0:00:50]} 33. Rxa1 {[%clk 0:01:17]}  Rxa1+ {[%clk 0:00:51]} 34. Kh2 {[%clk 0:01:18]}  Be5+ {[%clk 0:00:39]} 35. Nxe5 {[%clk 0:01:16]}  Qxe5+ {[%clk 0:00:39]} 36. g3 {[%clk 0:01:15]}  Qh5 {[%clk 0:00:39]} 37. h4 {[%clk 0:01:13]}  Qg4 {[%clk 0:00:36]} 38. Kg2 {[%clk 0:00:54]}  Qh3+ {[%clk 0:00:24]} 39. Kf3 {[%clk 0:00:54]}  Qh1+ {[%clk 0:00:15]} 40. Ke3 {[%clk 0:00:53]}  Rf1 {[%clk 0:00:12]} 41. Qe2 {[%clk 0:00:46]}  Rb1 {[%clk 0:00:05]} 42. Kf4 {[%clk 0:00:39]}  h6 {[%clk 0:00:05]} 43. Ne6 {[%clk 0:00:27]}  Qc1+ {[%clk 0:00:05]} 44. Kg4 {[%clk 0:00:24]}  fxe6 {[%clk 0:00:02]} 45. dxe6 {[%clk 0:00:24]}  Be8 {[%clk 0:00:02]} 46. e7+ {[%clk 0:00:24]}  Kh7 {[%clk 0:00:03]} 47. Be6 {[%clk 0:00:16]}  Qd1 {[%clk 0:00:02]} 48. Qxd1 {[%clk 0:00:13]}  Rxd1 {[%clk 0:00:03]} 49. f4 {[%clk 0:00:13]}  h5+ {[%clk 0:00:01]} 50. Kg5 {[%clk 0:00:13]} 1-0


[Site "https://www.chess.com"]

[Event "Titled Tuesday Blitz February 14 Early 2023"]
[White "Drygalov, Sergey"]
[Black "Lianes Garcia, Marcos"]
[WhiteFideId "24171743"]
[BlackFideId "32060777"]
[WhiteElo "2547"]
[BlackElo "2411"]
[Result "1/2-1/2"]
[Round "03"]
[TimeControl "180+2"]
[Date "2023.02.15"]
[WhiteClock "0:00:05"]
[BlackClock "0:00:03"]

1. d4 {[%clk 0:03:00]}  g6 {[%clk 0:02:59]} 2. c4 {[%clk 0:02:58]}  Bg7 {[%clk 0:02:57]} 3. Nf3 {[%clk 0:02:58]}  c5 {[%clk 0:02:58]} 4. d5 {[%clk 0:02:57]}  d6 {[%clk 0:02:58]} 5. e4 {[%clk 0:02:56]}  e5 {[%clk 0:02:58]} 6. Nc3 {[%clk 0:02:41]}  Ne7 {[%clk 0:02:57]} 7. h4 {[%clk 0:02:36]}  h6 {[%clk 0:02:57]} 8. h5 {[%clk 0:02:36]}  g5 {[%clk 0:02:57]} 9. Be2 {[%clk 0:02:35]}  O-O {[%clk 0:02:56]} 10. Nh2 {[%clk 0:02:29]}  f5 {[%clk 0:02:52]} 11. exf5 {[%clk 0:02:23]}  Bxf5 {[%clk 0:02:53]} 12. Ng4 {[%clk 0:02:21]}  Nd7 {[%clk 0:02:52]} 13. Ne3 {[%clk 0:02:21]}  Bh7 {[%clk 0:02:51]} 14. Bd3 {[%clk 0:02:15]}  Bxd3 {[%clk 0:02:51]} 15. Qxd3 {[%clk 0:02:15]}  Nf6 {[%clk 0:02:52]} 16. Bd2 {[%clk 0:02:11]}  a6 {[%clk 0:02:50]} 17. g4 {[%clk 0:01:42]}  Qd7 {[%clk 0:02:46]} 18. f3 {[%clk 0:01:37]}  b5 {[%clk 0:02:11]} 19. O-O {[%clk 0:01:24]}  Rab8 {[%clk 0:02:02]} 20. b3 {[%clk 0:01:24]}  Rfc8 {[%clk 0:01:59]} 21. Rab1 {[%clk 0:01:23]}  b4 {[%clk 0:01:58]} 22. Ne4 {[%clk 0:01:23]}  Nxe4 {[%clk 0:01:55]} 23. fxe4 {[%clk 0:01:24]}  Rf8 {[%clk 0:01:55]} 24. Kg2 {[%clk 0:01:04]}  a5 {[%clk 0:01:50]} 25. Rxf8+ {[%clk 0:00:56]}  Rxf8 {[%clk 0:01:49]} 26. Rf1 {[%clk 0:00:56]}  Rxf1 {[%clk 0:01:46]} 27. Qxf1 {[%clk 0:00:56]}  a4 {[%clk 0:01:42]} 28. Qe1 {[%clk 0:00:39]}  axb3 {[%clk 0:01:21]} 29. axb3 {[%clk 0:00:38]}  Qa7 {[%clk 0:01:22]} 30. Qb1 {[%clk 0:00:38]}  Bf6 {[%clk 0:01:19]} 31. Nc2 {[%clk 0:00:38]}  Kf7 {[%clk 0:01:17]} 32. Qa1 {[%clk 0:00:31]}  Qxa1 {[%clk 0:01:17]} 33. Nxa1 {[%clk 0:00:32]}  Nc8 {[%clk 0:01:15]} 34. Nc2 {[%clk 0:00:33]}  Bd8 {[%clk 0:01:15]} 35. Ne3 {[%clk 0:00:32]}  Ne7 {[%clk 0:01:15]} 36. Kf3 {[%clk 0:00:32]}  Kg7 {[%clk 0:01:02]} 37. Nd1 {[%clk 0:00:30]}  Kf7 {[%clk 0:01:02]} 38. Nb2 {[%clk 0:00:30]}  Ke8 {[%clk 0:00:57]} 39. Nd3 {[%clk 0:00:30]}  Bc7 {[%clk 0:00:48]} 40. Bc1 {[%clk 0:00:28]}  Kf7 {[%clk 0:00:48]} 41. Bb2 {[%clk 0:00:28]}  Kf6 {[%clk 0:00:46]} 42. Bxe5+ {[%clk 0:00:28]}  dxe5 {[%clk 0:00:45]} 43. Nxc5 {[%clk 0:00:29]}  Nc8 {[%clk 0:00:18]} 44. Na6 {[%clk 0:00:29]}  Ba5 {[%clk 0:00:17]} 45. c5 {[%clk 0:00:27]}  Ke7 {[%clk 0:00:18]} 46. Ke3 {[%clk 0:00:27]}  Na7 {[%clk 0:00:16]} 47. Kd3 {[%clk 0:00:26]}  Nb5 {[%clk 0:00:17]} 48. Nb8 {[%clk 0:00:24]}  Nd4 {[%clk 0:00:10]} 49. Kc4 {[%clk 0:00:24]}  Kd8 {[%clk 0:00:09]} 50. d6 {[%clk 0:00:01]}  Kc8 {[%clk 0:00:07]} 51. Na6 {[%clk 0:00:02]}  Kb7 {[%clk 0:00:06]} 52. Kd5 {[%clk 0:00:03]}  Kxa6 {[%clk 0:00:05]} 53. Kxe5 {[%clk 0:00:03]}  Nc6+ {[%clk 0:00:05]} 54. Kd5 {[%clk 0:00:04]}  Kb5 {[%clk 0:00:06]} 55. e5 {[%clk 0:00:04]}  Bd8 {[%clk 0:00:06]} 56. e6 {[%clk 0:00:05]}  Bf6 {[%clk 0:00:07]} 57. e7 {[%clk 0:00:05]}  Nxe7+ {[%clk 0:00:04]} 58. Ke6 {[%clk 0:00:05]}  Ng8 {[%clk 0:00:03]} 59. Kd5 {[%clk 0:00:04]}  Ne7+ {[%clk 0:00:02]} 60. Ke6 {[%clk 0:00:05]}  Ng8 {[%clk 0:00:03]} 61. Kd5 {[%clk 0:00:05]}  Ne7+ {[%clk 0:00:03]} 1/2-1/2


[Site "https://www.chess.com"]

[Event "Titled Tuesday Blitz February 14 Early 2023"]
[White "Chigaev, Maksim"]
[Black "Srihari L R"]
[WhiteFideId "4108116"]
[BlackFideId "46617116"]
[WhiteElo "2628"]
[BlackElo "2416"]
[Result "1/2-1/2"]
[Round "03"]
[TimeControl "180+2"]
[Date "2023.02.15"]
[WhiteClock "0:00:04"]
[BlackClock "0:00:05"]

1. e4 {[%clk 0:03:00]}  c6 {[%clk 0:02:54]} 2. Nf3 {[%clk 0:03:00]}  d5 {[%clk 0:02:52]} 3. d3 {[%clk 0:03:01]}  Nf6 {[%clk 0:02:50]} 4. e5 {[%clk 0:03:00]}  Nfd7 {[%clk 0:02:50]} 5. d4 {[%clk 0:03:01]}  e6 {[%clk 0:02:50]} 6. c3 {[%clk 0:03:01]}  c5 {[%clk 0:02:50]} 7. Bd3 {[%clk 0:03:02]}  Nc6 {[%clk 0:02:50]} 8. O-O {[%clk 0:03:02]}  a6 {[%clk 0:02:49]} 9. Be3 {[%clk 0:02:58]}  b5 {[%clk 0:02:49]} 10. Nbd2 {[%clk 0:02:58]}  Bb7 {[%clk 0:02:48]} 11. a3 {[%clk 0:02:54]}  Be7 {[%clk 0:02:48]} 12. Re1 {[%clk 0:02:54]}  Rc8 {[%clk 0:02:44]} 13. Nf1 {[%clk 0:02:48]}  cxd4 {[%clk 0:02:43]} 14. cxd4 {[%clk 0:02:48]}  Na5 {[%clk 0:02:43]} 15. Ng3 {[%clk 0:02:46]}  Nc4 {[%clk 0:02:41]} 16. Bc1 {[%clk 0:02:45]}  h5 {[%clk 0:02:40]} 17. h3 {[%clk 0:02:32]}  h4 {[%clk 0:02:40]} 18. Nf1 {[%clk 0:02:31]}  b4 {[%clk 0:02:20]} 19. axb4 {[%clk 0:02:29]}  Bxb4 {[%clk 0:02:20]} 20. Re2 {[%clk 0:02:30]}  a5 {[%clk 0:02:16]} 21. N1h2 {[%clk 0:02:29]}  Nb8 {[%clk 0:02:04]} 22. Ng4 {[%clk 0:02:26]}  Ba6 {[%clk 0:02:03]} 23. b3 {[%clk 0:02:06]}  Nb6 {[%clk 0:01:50]} 24. Bg5 {[%clk 0:02:06]}  Qd7 {[%clk 0:01:30]} 25. Bxa6 {[%clk 0:01:52]}  Nxa6 {[%clk 0:01:30]} 26. Rc2 {[%clk 0:01:49]}  Qb5 {[%clk 0:01:01]} 27. Rxc8+ {[%clk 0:01:29]}  Nxc8 {[%clk 0:01:02]} 28. Bxh4 {[%clk 0:01:21]}  Na7 {[%clk 0:00:50]} 29. Bg5 {[%clk 0:01:14]}  Nc6 {[%clk 0:00:39]} 30. Qc2 {[%clk 0:01:14]}  Kd7 {[%clk 0:00:38]} 31. Qc1 {[%clk 0:00:57]}  Qd3 {[%clk 0:00:25]} 32. Qe3 {[%clk 0:00:38]}  Qxe3 {[%clk 0:00:22]} 33. Bxe3 {[%clk 0:00:39]}  Rb8 {[%clk 0:00:22]} 34. Ng5 {[%clk 0:00:26]}  Bc3 {[%clk 0:00:22]} 35. Ra3 {[%clk 0:00:24]}  Bb2 {[%clk 0:00:21]} 36. Ra4 {[%clk 0:00:23]}  Rxb3 {[%clk 0:00:21]} 37. Nxf7 {[%clk 0:00:24]}  Rb4 {[%clk 0:00:19]} 38. Ra2 {[%clk 0:00:22]}  Bxd4 {[%clk 0:00:18]} 39. Bxd4 {[%clk 0:00:21]}  Rxd4 {[%clk 0:00:19]} 40. Ng5 {[%clk 0:00:19]}  a4 {[%clk 0:00:19]} 41. Kh2 {[%clk 0:00:18]}  Nc5 {[%clk 0:00:15]} 42. Nf3 {[%clk 0:00:10]}  Rd3 {[%clk 0:00:15]} 43. Rc2 {[%clk 0:00:06]}  Ne4 {[%clk 0:00:08]} 44. Rb2 {[%clk 0:00:06]}  Rb3 {[%clk 0:00:08]} 45. Ra2 {[%clk 0:00:03]}  a3 {[%clk 0:00:09]} 46. Ne3 {[%clk 0:00:03]}  Nc3 {[%clk 0:00:08]} 47. Ra1 {[%clk 0:00:03]}  a2 {[%clk 0:00:08]} 48. Nd2 {[%clk 0:00:04]}  Rb1 {[%clk 0:00:09]} 49. Rxa2 {[%clk 0:00:03]}  Nxa2 {[%clk 0:00:06]} 50. Nxb1 {[%clk 0:00:03]}  Nxe5 {[%clk 0:00:06]} 51. f4 {[%clk 0:00:04]}  Nc4 {[%clk 0:00:05]} 52. Nc2 {[%clk 0:00:03]}  Kd6 {[%clk 0:00:05]} 53. Kg3 {[%clk 0:00:03]}  Kc5 {[%clk 0:00:05]} 54. Kf3 {[%clk 0:00:03]}  d4 {[%clk 0:00:06]} 55. Ke4 {[%clk 0:00:04]}  Nd6+ {[%clk 0:00:04]} 56. Kd3 {[%clk 0:00:04]}  Nb5 {[%clk 0:00:04]} 57. Nd2 {[%clk 0:00:04]}  Nac3 {[%clk 0:00:03]} 58. Nb3+ {[%clk 0:00:04]}  Kd5 {[%clk 0:00:02]} 59. Nbxd4 {[%clk 0:00:04]}  Nxd4 {[%clk 0:00:02]} 60. Nxd4 {[%clk 0:00:05]}  Ne4 {[%clk 0:00:03]} 61. Ke3 {[%clk 0:00:04]}  Nf6 {[%clk 0:00:03]} 62. Nf3 {[%clk 0:00:04]}  Kd6 {[%clk 0:00:03]} 63. Ne5 {[%clk 0:00:05]}  Ke7 {[%clk 0:00:03]} 64. Kf3 {[%clk 0:00:05]}  Nd5 {[%clk 0:00:04]} 65. h4 {[%clk 0:00:06]}  Kf6 {[%clk 0:00:04]} 66. g4 {[%clk 0:00:06]}  g6 {[%clk 0:00:05]} 67. Nc4 {[%clk 0:00:04]}  Ne7 {[%clk 0:00:05]} 68. Nd6 {[%clk 0:00:05]}  Nd5 {[%clk 0:00:05]} 69. Ne4+ {[%clk 0:00:05]}  Kf7 {[%clk 0:00:04]} 70. Kg3 {[%clk 0:00:06]}  Ne7 {[%clk 0:00:04]} 71. Ng5+ {[%clk 0:00:07]}  Kf6 {[%clk 0:00:05]} 72. Kf3 {[%clk 0:00:07]}  Nd5 {[%clk 0:00:05]} 73. Ne4+ {[%clk 0:00:08]}  Kf7 {[%clk 0:00:05]} 74. Nc5 {[%clk 0:00:08]}  Kf6 {[%clk 0:00:06]} 75. Nd3 {[%clk 0:00:08]}  Ne7 {[%clk 0:00:06]} 76. Ne5 {[%clk 0:00:08]}  Nd5 {[%clk 0:00:06]} 77. Ke4 {[%clk 0:00:09]}  Ne7 {[%clk 0:00:06]} 78. Nd7+ {[%clk 0:00:09]}  Kf7 {[%clk 0:00:06]} 79. Nb6 {[%clk 0:00:07]}  Nc6 {[%clk 0:00:05]} 80. Nc4 {[%clk 0:00:06]}  Kf6 {[%clk 0:00:04]} 81. Ne5 {[%clk 0:00:06]}  Ne7 {[%clk 0:00:05]} 82. Kf3 {[%clk 0:00:04]}  Nd5 {[%clk 0:00:05]} 1/2-1/2


[Site "https://www.chess.com"]

[Event "Titled Tuesday Blitz February 14 Early 2023"]
[White "Tanenbaum, Zachary"]
[Black "Sychev, Klementy"]
[WhiteFideId "2060850"]
[BlackFideId "4114060"]
[WhiteElo "2261"]
[BlackElo "2547"]
[Result "1-0"]
[Round "03"]
[TimeControl "180+2"]
[Date "2023.02.15"]
[WhiteClock "0:00:10"]
[BlackClock "0:00:17"]

1. e4 {[%clk 0:03:00]}  e5 {[%clk 0:02:59]} 2. Nf3 {[%clk 0:03:01]}  Nc6 {[%clk 0:03:00]} 3. Bc4 {[%clk 0:03:02]}  Nf6 {[%clk 0:02:59]} 4. d3 {[%clk 0:03:02]}  Bc5 {[%clk 0:02:59]} 5. c3 {[%clk 0:03:01]}  O-O {[%clk 0:02:56]} 6. Nbd2 {[%clk 0:03:02]}  d5 {[%clk 0:02:55]} 7. exd5 {[%clk 0:03:03]}  Nxd5 {[%clk 0:02:55]} 8. Ne4 {[%clk 0:03:04]}  Be7 {[%clk 0:02:51]} 9. O-O {[%clk 0:03:04]}  Nb6 {[%clk 0:02:51]} 10. Bb3 {[%clk 0:03:04]}  Bg4 {[%clk 0:02:51]} 11. h3 {[%clk 0:03:04]}  Bxf3 {[%clk 0:02:46]} 12. Qxf3 {[%clk 0:03:03]}  Qd7 {[%clk 0:02:39]} 13. Bg5 {[%clk 0:02:46]}  Kh8 {[%clk 0:02:32]} 14. Qh5 {[%clk 0:02:03]}  f5 {[%clk 0:02:24]} 15. Bxe7 {[%clk 0:01:58]}  Qxe7 {[%clk 0:02:23]} 16. Ng5 {[%clk 0:01:58]}  h6 {[%clk 0:02:22]} 17. Nf7+ {[%clk 0:01:55]}  Kh7 {[%clk 0:02:20]} 18. Qxf5+ {[%clk 0:01:42]}  g6 {[%clk 0:02:19]} 19. Qe6 {[%clk 0:01:43]}  Qxe6 {[%clk 0:02:13]} 20. Bxe6 {[%clk 0:01:43]}  Rae8 {[%clk 0:02:05]} 21. Bb3 {[%clk 0:01:43]}  Na5 {[%clk 0:02:02]} 22. Rfe1 {[%clk 0:01:27]}  Nxb3 {[%clk 0:01:49]} 23. axb3 {[%clk 0:01:28]}  Rxf7 {[%clk 0:01:49]} 24. Rxa7 {[%clk 0:01:29]}  c6 {[%clk 0:01:49]} 25. Re4 {[%clk 0:01:25]}  Ree7 {[%clk 0:01:37]} 26. Ra5 {[%clk 0:00:57]}  Nd7 {[%clk 0:01:30]} 27. f3 {[%clk 0:00:52]}  g5 {[%clk 0:01:29]} 28. b4 {[%clk 0:00:50]}  Kg6 {[%clk 0:01:29]} 29. b5 {[%clk 0:00:49]}  c5 {[%clk 0:01:24]} 30. b4 {[%clk 0:00:39]}  Nf6 {[%clk 0:01:21]} 31. Rc4 {[%clk 0:00:37]}  cxb4 {[%clk 0:01:17]} 32. Rxb4 {[%clk 0:00:38]}  Nd5 {[%clk 0:01:15]} 33. Rc4 {[%clk 0:00:37]}  Rc7 {[%clk 0:01:13]} 34. Rxc7 {[%clk 0:00:27]}  Rxc7 {[%clk 0:01:10]} 35. b6 {[%clk 0:00:24]}  Rd7 {[%clk 0:01:08]} 36. c4 {[%clk 0:00:23]}  Nf4 {[%clk 0:00:47]} 37. Rxe5 {[%clk 0:00:23]}  Kf6 {[%clk 0:00:47]} 38. Re8 {[%clk 0:00:18]}  Nxd3 {[%clk 0:00:46]} 39. Rh8 {[%clk 0:00:18]}  Kg6 {[%clk 0:00:41]} 40. Rc8 {[%clk 0:00:19]}  Kf5 {[%clk 0:00:35]} 41. Rh8 {[%clk 0:00:17]}  Rd6 {[%clk 0:00:33]} 42. Rf8+ {[%clk 0:00:14]}  Kg6 {[%clk 0:00:31]} 43. Rg8+ {[%clk 0:00:13]}  Kh7 {[%clk 0:00:29]} 44. Re8 {[%clk 0:00:11]}  Rxb6 {[%clk 0:00:27]} 45. Re3 {[%clk 0:00:12]}  Nf4 {[%clk 0:00:24]} 46. c5 {[%clk 0:00:12]}  Rb2 {[%clk 0:00:22]} 47. g3 {[%clk 0:00:11]}  Rg2+ {[%clk 0:00:18]} 48. Kf1 {[%clk 0:00:10]}  Rxg3 {[%clk 0:00:17]} 49. Re7+ {[%clk 0:00:10]} 1-0


[Site "https://www.chess.com"]

[Event "Titled Tuesday Blitz February 14 Early 2023"]
[White "Vokhidov, Shamsiddin"]
[Black "Darini, Pouria"]
[WhiteFideId "14204223"]
[BlackFideId "12502200"]
[WhiteElo "2586"]
[BlackElo "2401"]
[Result "1-0"]
[Round "03"]
[TimeControl "180+2"]
[Date "2023.02.15"]
[WhiteClock "0:00:08"]
[BlackClock "0:00:04"]

1. e4 {[%clk 0:03:00]}  c5 {[%clk 0:02:58]} 2. Nf3 {[%clk 0:02:59]}  Nc6 {[%clk 0:02:59]} 3. Bb5 {[%clk 0:02:58]}  e6 {[%clk 0:02:59]} 4. Bxc6 {[%clk 0:02:57]}  bxc6 {[%clk 0:02:59]} 5. d3 {[%clk 0:02:58]}  Qc7 {[%clk 0:02:57]} 6. Qe2 {[%clk 0:02:56]}  e5 {[%clk 0:02:53]} 7. Nfd2 {[%clk 0:02:56]}  Ne7 {[%clk 0:02:13]} 8. Nc3 {[%clk 0:02:55]}  Ng6 {[%clk 0:02:07]} 9. h4 {[%clk 0:02:53]}  Nf4 {[%clk 0:02:05]} 10. Qf1 {[%clk 0:02:51]}  d6 {[%clk 0:02:01]} 11. Nc4 {[%clk 0:02:44]}  Ne6 {[%clk 0:01:53]} 12. f4 {[%clk 0:02:44]}  Nd4 {[%clk 0:01:53]} 13. Qf2 {[%clk 0:02:44]}  f6 {[%clk 0:01:46]} 14. b3 {[%clk 0:02:24]}  Be6 {[%clk 0:01:46]} 15. f5 {[%clk 0:02:12]}  Bf7 {[%clk 0:01:45]} 16. g4 {[%clk 0:02:02]}  d5 {[%clk 0:01:43]} 17. Ne3 {[%clk 0:01:52]}  Rd8 {[%clk 0:01:33]} 18. Bb2 {[%clk 0:01:51]}  c4 {[%clk 0:01:25]} 19. dxc4 {[%clk 0:01:48]}  dxc4 {[%clk 0:01:16]} 20. O-O-O {[%clk 0:01:48]}  Bc5 {[%clk 0:00:48]} 21. Na4 {[%clk 0:01:45]}  Qa5 {[%clk 0:00:34]} 22. Bc3 {[%clk 0:01:25]}  Qb5 {[%clk 0:00:28]} 23. Nxc5 {[%clk 0:01:12]}  Qxc5 {[%clk 0:00:27]} 24. Qe1 {[%clk 0:01:06]}  cxb3 {[%clk 0:00:22]} 25. axb3 {[%clk 0:01:02]}  Rb8 {[%clk 0:00:15]} 26. Rd3 {[%clk 0:00:46]}  O-O {[%clk 0:00:13]} 27. Qd2 {[%clk 0:00:47]}  Bxb3 {[%clk 0:00:05]} 28. Rxd4 {[%clk 0:00:45]}  exd4 {[%clk 0:00:05]} 29. Bxd4 {[%clk 0:00:45]}  Qa3+ {[%clk 0:00:05]} 30. Bb2 {[%clk 0:00:46]}  Qa4 {[%clk 0:00:04]} 31. g5 {[%clk 0:00:37]}  Qxe4 {[%clk 0:00:02]} 32. Rg1 {[%clk 0:00:35]}  Rfd8 {[%clk 0:00:02]} 33. Qc3 {[%clk 0:00:33]}  Re8 {[%clk 0:00:03]} 34. Ng4 {[%clk 0:00:30]}  Qf4+ {[%clk 0:00:03]} 35. Kb1 {[%clk 0:00:29]}  Bxc2+ {[%clk 0:00:03]} 36. Qxc2 {[%clk 0:00:28]}  Rxb2+ {[%clk 0:00:04]} 37. Kxb2 {[%clk 0:00:26]}  Rb8+ {[%clk 0:00:04]} 38. Ka2 {[%clk 0:00:26]}  Qb4 {[%clk 0:00:04]} 39. Rg3 {[%clk 0:00:24]}  Qa5+ {[%clk 0:00:02]} 40. Ra3 {[%clk 0:00:24]}  Qd5+ {[%clk 0:00:03]} 41. Rb3 {[%clk 0:00:20]}  a5 {[%clk 0:00:03]} 42. Ne3 {[%clk 0:00:19]}  Qf7 {[%clk 0:00:04]} 43. Qc4 {[%clk 0:00:19]}  Qxc4 {[%clk 0:00:04]} 44. Nxc4 {[%clk 0:00:20]}  Rd8 {[%clk 0:00:04]} 45. gxf6 {[%clk 0:00:19]}  gxf6 {[%clk 0:00:04]} 46. Nxa5 {[%clk 0:00:19]}  Rd5 {[%clk 0:00:04]} 47. Nxc6 {[%clk 0:00:19]}  Kf7 {[%clk 0:00:05]} 48. Rb7+ {[%clk 0:00:19]}  Kf8 {[%clk 0:00:06]} 49. Rxh7 {[%clk 0:00:12]}  Rxf5 {[%clk 0:00:06]} 50. Ne7 {[%clk 0:00:11]}  Rf2+ {[%clk 0:00:03]} 51. Kb3 {[%clk 0:00:10]}  Rg2 {[%clk 0:00:04]} 52. h5 {[%clk 0:00:09]}  f5 {[%clk 0:00:03]} 53. Nxf5 {[%clk 0:00:08]}  Rg5 {[%clk 0:00:03]} 54. Ne7 {[%clk 0:00:07]}  Re5 {[%clk 0:00:03]} 55. Ng6+ {[%clk 0:00:07]}  Kg8 {[%clk 0:00:03]} 56. Nxe5 {[%clk 0:00:07]}  Kxh7 {[%clk 0:00:04]} 57. Ng4 {[%clk 0:00:08]}  Kg7 {[%clk 0:00:04]} 58. Kc4 {[%clk 0:00:08]} 1-0


[Site "https://www.chess.com"]

[Event "Titled Tuesday Blitz February 14 Early 2023"]
[White "Zhigalko, Sergei"]
[Black "Matinian, Nikita"]
[WhiteFideId "13502956"]
[BlackFideId "24129100"]
[WhiteElo "2572"]
[BlackElo "2407"]
[Result "1-0"]
[Round "03"]
[TimeControl "180+2"]
[Date "2023.02.15"]
[WhiteClock "0:00:10"]
[BlackClock "0:00:11"]

1. e4 {[%clk 0:03:00]}  d6 {[%clk 0:03:00]} 2. d4 {[%clk 0:02:59]}  g6 {[%clk 0:03:01]} 3. Nc3 {[%clk 0:02:59]}  Bg7 {[%clk 0:03:01]} 4. Nf3 {[%clk 0:02:59]}  Nf6 {[%clk 0:02:59]} 5. h3 {[%clk 0:02:59]}  Nc6 {[%clk 0:02:57]} 6. Bb5 {[%clk 0:02:55]}  O-O {[%clk 0:02:47]} 7. O-O {[%clk 0:02:55]}  Bd7 {[%clk 0:02:44]} 8. Re1 {[%clk 0:02:48]}  a6 {[%clk 0:02:24]} 9. Bxc6 {[%clk 0:02:36]}  Bxc6 {[%clk 0:02:25]} 10. Bf4 {[%clk 0:02:36]}  b5 {[%clk 0:02:22]} 11. d5 {[%clk 0:02:32]}  Bb7 {[%clk 0:01:59]} 12. Qd2 {[%clk 0:02:28]}  c6 {[%clk 0:01:53]} 13. a3 {[%clk 0:02:15]}  Rc8 {[%clk 0:01:48]} 14. Rad1 {[%clk 0:02:13]}  Re8 {[%clk 0:01:42]} 15. Bh6 {[%clk 0:02:08]}  Bh8 {[%clk 0:01:39]} 16. dxc6 {[%clk 0:02:03]}  Bxc6 {[%clk 0:01:33]} 17. Nd4 {[%clk 0:02:03]}  Bb7 {[%clk 0:01:28]} 18. Qg5 {[%clk 0:02:03]}  Rxc3 {[%clk 0:01:24]} 19. bxc3 {[%clk 0:02:03]}  Nxe4 {[%clk 0:01:24]} 20. Qe3 {[%clk 0:01:58]}  Qc8 {[%clk 0:01:18]} 21. Rd3 {[%clk 0:01:55]}  Qc4 {[%clk 0:01:04]} 22. Kh1 {[%clk 0:00:44]}  Nc5 {[%clk 0:00:50]} 23. Rd2 {[%clk 0:00:42]}  Na4 {[%clk 0:00:50]} 24. Rd3 {[%clk 0:00:16]}  Nc5 {[%clk 0:00:47]} 25. Rd2 {[%clk 0:00:17]}  Ne4 {[%clk 0:00:47]} 26. Rd3 {[%clk 0:00:16]}  Bf6 {[%clk 0:00:42]} 27. f3 {[%clk 0:00:10]}  Nc5 {[%clk 0:00:23]} 28. Rd2 {[%clk 0:00:11]}  Qa2 {[%clk 0:00:19]} 29. Qf4 {[%clk 0:00:10]}  Be5 {[%clk 0:00:14]} 30. Rxe5 {[%clk 0:00:09]}  dxe5 {[%clk 0:00:15]} 31. Qxe5 {[%clk 0:00:10]}  Qa1+ {[%clk 0:00:11]} 32. Kh2 {[%clk 0:00:10]} 1-0


[Site "https://www.chess.com"]